bitfinex-derivatives/quotes_SOLF0:USTF0_20251026
["timestamp","ask_amount","ask_price","bid_price","bid_amount"]
[1761496035094,2.79,198.86,198.77,2.82]
[1761496035791,4.5253,198.88,198.81,4.5266]
[1761496035987,2.79,198.88,198.76,2.82]
[1761496036184,2.79,198.87,198.76,2.82]
[1761496036791,2.79,198.87,198.84,2.82]
[1761496039599,2.79,198.91,198.79,5.17]
[1761496039797,2.79,198.91,198.8,2.82]
[1761496041103,2.79,198.91,198.86,7.3455]
[1761496042296,2.79,198.91,198.87,2.82]
[1761496043491,2.79,198.91,198.87,7.3453]
[1761496044699,2.79,198.9,198.81,2.82]
[1761496046101,2.79,198.9,198.83,4.5262]
[1761496046293,7.08756873,198.9,198.83,4.5262]
[1761496047004,2.79,198.87,198.79,5.17]
[1761496047205,2.79,198.86,198.79,7.99]
[1761496048898,2.79,198.85,198.79,5.17]
[1761496049105,2.79,198.84,198.79,5.17]
[1761496049305,2.79,198.83,198.79,5.17]
[1761496050405,2.79,198.82,198.79,5.17]
[1761496050804,2.79,198.81,198.79,5.17]
[1761496051508,2.79,198.8,198.79,5.17]
[1761496053909,7.317,198.8,198.79,5.17]
[1761496054112,10.8692358,198.8,198.79,5.17]
[1761496054803,15.16628655,198.8,198.79,5.17]
[1761496055109,10.8692358,198.8,198.79,5.17]
[1761496055804,15.1661527,198.8,198.79,1.21762247]
[1761496057103,10.8692358,198.8,198.79,1.21762247]
[1761496057802,10.8692358,198.8,198.72,2.82]
[1761496058006,7.317,198.8,198.72,2.82]
[1761496061913,0.73,198.79,198.72,2.82]
[1761496065717,0.73,198.79,198.73,2.64]
[1761496069419,5.2575,198.79,198.71,2.64]
[1761496071117,5.2575,198.79,198.72,2.64]
[1761496073826,0.73,198.79,198.71,2.64]
[1761496074826,0.73,198.82,198.7,6.26]
[1761496075014,0.73,198.82,198.72,2.64]
[1761496076022,0.73,198.82,198.75,4.5279]
[1761496076221,4.5259,198.85,198.76,2.64]
[1761496076427,0.73,198.84,198.76,2.64]
[1761496076816,5.2562,198.84,198.76,4.5278]
[1761496077121,5.2562,198.84,198.77,2.64]
[1761496081429,5.2562,198.84,198.77,7.1675]
[1761496081626,5.2562,198.84,198.78,2.64]
[1761496081930,0.73,198.84,198.78,2.64]
[1761496082432,4.5257,198.86,198.78,2.64]
[1761496082927,0.73,198.87,198.8,2.71]
[1761496084029,0.73,198.87,198.81,2.71]
[1761496084628,0.73,198.87,198.82,4.5265]
[1761496084829,9.56506514,198.9,198.83,2.71]
[1761496085029,4.31026514,198.89,198.83,2.71]
[1761496085433,9.56506514,198.9,198.83,2.71]
[1761496085634,4.31026514,198.89,198.83,2.71]
[1761496086133,5.2548,198.9,198.84,2.71]
[1761496087029,4.31531815,198.91,198.86,2.71]
[1761496087234,0.73,198.91,198.86,2.71]
[1761496102230,4.5239,198.94,198.87,2.84]
[1761496102943,4.5239,198.94,198.88,2.84]
[1761496103943,5.2539,198.94,198.88,2.84]
[1761496105846,4.5235,198.96,198.89,2.84]
[1761496106141,5.2535,198.96,198.89,2.84]
[1761496106942,5.2535,198.96,198.89,7.3648]
[1761496107150,5.2535,198.96,198.9,2.84]
[1761496110655,4.523,198.98,198.91,2.84]
[1761496110855,5.253,198.98,198.91,2.84]
[1761496112054,5.253,198.98,198.92,2.84]
[1761496114362,5.253,198.98,198.93,2.84]
[1761496115971,0.73,198.97,198.9,7.3647]
[1761496116664,0.73,198.96,198.9,7.3647]
[1761496116865,0.73,198.96,198.9,2.84]
[1761496117465,5.2535,198.96,198.9,7.3646]
[1761496117867,0.73,198.95,198.88,2.84]
[1761496118972,5.2544,198.92,198.88,2.84]
[1761496119370,0.73,198.91,198.88,2.84]
[1761496120569,0.73,198.94,198.88,2.84]
[1761496120969,4.5259,198.85,198.77,2.61]
[1761496121169,0.73,198.84,198.77,2.61]
[1761496121971,0.73,198.83,198.77,2.61]
[1761496122169,0.73,198.83,198.76,6.26]
[1761496122369,8.62907946,198.83,198.76,6.26]
[1761496122675,3.59518646,198.82,198.76,8.87]
[1761496122867,4.32518646,198.83,198.76,2.61]
[1761496124070,4.32518646,198.83,198.7,2.61]
[1761496124071,0.73,198.81,198.7,2.61]
[1761496124467,4.5275,198.79,198.7,2.61]
[1761496124672,4.32518646,198.78,198.7,2.61]
[1761496125181,0.73,198.78,198.7,2.61]
[1761496125380,0.73,198.78,198.71,7.73]
[1761496130090,0.73,198.78,198.72,2.61]
[1761496130681,0.73,198.78,198.71,7.73]
[1761496130882,0.73,198.78,198.72,2.61]
[1761496143499,5.2577,198.77,198.71,7.91]
[1761496144090,0.73,198.76,198.71,7.91]
[1761496144297,0.73,198.76,198.72,2.79]
[1761496145689,0.73,198.76,198.71,5.12]
[1761496145891,0.73,198.72,198.71,5.12]
[1761496148007,0.73,198.72,198.71,2.27]
[1761496149793,4.5299,198.68,198.6,2.76]
[1761496150106,8.91780019,198.75,198.6,2.76]
[1761496150302,3.56240225,198.74,198.6,2.76]
[1761496150502,4.5292,198.71,198.6,2.76]
[1761496150904,4.5295,198.7,198.6,2.76]
[1761496152303,4.23253377,198.75,198.6,2.76]
[1761496152503,7.79135034,198.75,198.6,2.76]
[1761496152698,3.55881657,198.74,198.6,2.76]
[1761496152904,4.5302,198.67,198.6,2.76]
[1761496154500,4.23133936,198.74,198.58,3.9]
[1761496154501,4.5305,198.65,198.58,3.9]
[1761496154695,4.5305,198.65,198.59,2.76]
[1761496155600,4.5309,198.64,198.59,2.76]
[1761496158410,4.5302,198.67,198.59,2.76]
[1761496159119,4.5304,198.66,198.59,2.76]
[1761496161304,4.68076928,198.78,198.59,2.76]
[1761496161501,3.56742921,198.77,198.59,2.76]
[1761496161707,4.68076928,198.81,198.59,2.76]
[1761496161708,3.56742921,198.78,198.59,2.76]
[1761496162008,3.56742921,198.8,198.59,2.76]
[1761496162201,4.5273,198.79,198.7,4.5292]
[1761496162414,3.56742921,198.78,198.71,2.76]
[1761496163814,6.18977111,198.85,198.58,1.14]
[1761496163815,4.68076928,198.87,198.69,2.76]
[1761496164016,3.57648759,198.86,198.69,2.76]
[1761496164214,13.38488061,198.88,198.69,2.76]
[1761496164413,7.8284634,198.87,198.69,2.76]
[1761496165014,7.8284634,198.87,198.68,69.14]
[1761496165015,4.5256,198.86,198.75,2.76]
[1761496165213,3.57648759,198.85,198.75,2.76]
[1761496165413,7.8284634,198.85,198.75,2.76]
[1761496167006,7.8284634,198.85,198.75,4.5279]
[1761496167212,7.8284634,198.85,198.76,2.76]
[1761496167808,3.57648759,198.84,198.76,2.76]
[1761496168023,7.83321096,198.87,198.76,2.76]
[1761496168214,7.83321096,198.87,198.78,2.76]
[1761496171219,4.68076928,198.9,198.78,2.76]
[1761496171220,3.57648759,198.86,198.78,2.76]
[1761496171419,4.25362586,198.89,198.78,2.76]
[1761496172119,4.5256,198.86,198.78,2.76]
[1761496172322,3.57648759,198.85,198.78,2.76]
[1761496174422,4.5256,198.86,198.78,2.76]
[1761496180124,4.5256,198.86,198.79,1.14]
[1761496182630,4.5261,198.85,198.79,1.14]
[1761496184829,4.5261,198.85,198.79,3.92]
[1761496185028,4.5261,198.85,198.8,2.78]
[1761496190430,4.5263,198.84,198.79,1.14]
[1761496191228,4.5263,198.84,198.79,3.92]
[1761496197727,4.5263,198.84,198.8,2.78]
[1761496200338,4.5263,198.84,198.79,1.14]
[1761496200734,4.5263,198.84,198.79,3.92]
[1761496202338,4.5265,198.83,198.79,3.92]
[1761496203134,4.5265,198.83,198.79,1.14]
[1761496203433,3.58261651,198.82,198.79,1.14]
[1761496203740,4.64906519,198.83,198.69,2.78]
[1761496203935,4.64906519,198.82,198.69,2.78]
[1761496204136,4.64906519,198.81,198.69,2.78]
[1761496204344,8.2316817,198.8,198.69,2.78]
[1761496204537,12.45087097,198.79,198.69,2.78]
[1761496204734,12.45087097,198.78,198.69,2.78]
[1761496204930,7.80180578,198.77,198.69,2.78]
[1761496205130,3.58261651,198.76,198.69,2.78]
[1761496205336,8.74708927,198.76,198.69,2.78]
[1761496205542,7.80180578,198.75,198.69,2.78]
[1761496205743,3.58261651,198.75,198.69,2.78]
[1761496206344,7.90320183,198.75,198.69,2.78]
[1761496206637,3.58261651,198.75,198.69,2.78]
[1761496206837,7.9032011,198.75,198.69,2.78]
[1761496207036,4.32058459,198.74,198.69,2.78]
[1761496207236,7.9032011,198.75,198.69,2.78]
[1761496209443,3.58261651,198.75,198.69,2.78]
[1761496209638,7.90070947,198.75,198.69,2.78]
[1761496209838,3.58261651,198.75,198.69,2.78]
[1761496210041,7.90087747,198.75,198.69,2.78]
[1761496210246,3.58261651,198.75,198.69,2.78]
[1761496216955,4.5279,198.76,198.69,2.78]
[1761496217258,3.58740588,198.75,198.69,2.78]
[1761496217658,4.5279,198.76,198.69,2.78]
[1761496217859,3.58702754,198.75,198.69,2.78]
[1761496218362,4.5279,198.76,198.69,2.78]
[1761496218757,3.58674791,198.75,198.69,2.78]
[1761496221262,8.11504791,198.75,198.69,2.78]
[1761496221565,3.58572614,198.74,198.69,2.78]
[1761496221764,4.5283,198.75,198.69,2.78]
[1761496221964,3.58532452,198.74,198.69,2.78]
[1761496222360,4.5283,198.75,198.69,2.78]
[1761496222561,3.58501738,198.74,198.69,2.78]
[1761496222761,4.5283,198.75,198.69,2.78]
[1761496226575,4.5277,198.77,198.69,7.3094]
[1761496226775,3.58519209,198.76,198.7,2.57]
[1761496228469,3.58519209,198.76,198.71,2.57]
[1761496229374,7.89540173,198.78,198.71,2.57]
[1761496229670,7.89540173,198.78,198.72,2.57]
[1761496229870,3.58519209,198.78,198.72,2.57]
[1761496233175,3.58519209,198.78,198.72,7.0987]
[1761496233376,3.58519209,198.78,198.73,2.57]
[1761496237672,3.58519209,198.78,198.72,4.5287]
[1761496238073,8.11279209,198.78,198.72,7.0987]
[1761496238270,3.58519209,198.77,198.7,7.0992]
[1761496238470,12.47875549,198.81,198.7,2.57]
[1761496238670,4.5283,198.75,198.7,2.57]
[1761496242174,3.60052827,198.74,198.7,2.57]
[1761496244684,3.60052827,198.74,198.67,2.76]
[1761496244685,8.12902827,198.74,198.67,2.76]
[1761496244880,3.60052827,198.73,198.67,2.76]
[1761496245785,7.85032614,198.73,198.67,2.76]
[1761496245976,3.60052827,198.73,198.67,7.2898]
[1761496246176,3.60052827,198.73,198.68,2.76]
[1761496246577,7.85040849,198.73,198.68,2.76]
[1761496247380,3.60052827,198.72,198.68,2.76]
[1761496247584,8.12942827,198.72,198.68,2.76]
[1761496247779,3.60052827,198.71,198.66,2.76]
[1761496248181,4.5292,198.71,198.66,2.76]
[1761496248386,3.60052827,198.7,198.66,2.76]
[1761496257392,3.60052827,198.7,198.64,4.5305]
[1761496257594,3.60052827,198.7,198.64,7.2905]
[1761496258093,3.60052827,198.7,198.65,2.76]
[1761496261290,3.60052827,198.7,198.66,2.76]
[1761496263795,4.5292,198.71,198.66,2.76]
[1761496263995,3.59993879,198.7,198.66,2.76]
[1761496264990,8.12933879,198.7,198.63,7.2008]
[1761496265189,3.59993879,198.69,198.63,7.2008]
[1761496265593,3.59993879,198.69,198.61,4.5313]
[1761496265790,4.64906519,198.71,198.6,2.67]
[1761496265986,3.59993879,198.7,198.6,2.67]
[1761496266995,4.5301,198.67,198.6,7.2014]
[1761496267388,4.5301,198.67,198.61,2.67]
[1761496269500,4.5296,198.69,198.61,7.2012]
[1761496269801,3.59506416,198.68,198.62,2.83]
[1761496270403,8.12496416,198.68,198.62,2.83]
[1761496270591,3.59506416,198.67,198.62,2.83]
[1761496271602,4.5299,198.68,198.62,2.83]
[1761496273097,3.59277847,198.67,198.58,2.83]
[1761496273405,4.64906519,198.67,198.55,2.83]
[1761496273709,8.24184366,198.66,198.55,2.83]
[1761496273895,4.18598834,198.65,198.55,2.83]
[1761496274299,3.59277847,198.65,198.55,2.83]
[1761496274501,4.18598834,198.66,198.55,2.83]
[1761496274706,4.64906519,198.66,198.55,2.83]
[1761496274907,4.5313,198.62,198.55,2.83]
[1761496275406,3.58819177,198.61,198.55,2.83]
[1761496276303,4.5313,198.62,198.55,2.83]
[1761496279099,4.64906519,198.67,198.55,2.83]
[1761496279100,15.11400663,198.67,198.55,2.83]
[1761496279499,15.11400663,198.67,198.61,4.5311]
[1761496279698,4.5295,198.69,198.62,2.83]
[1761496281112,4.5295,198.69,198.63,2.83]
[1761496282305,4.18113172,198.72,198.54,39.12]
[1761496282306,3.58959389,198.68,198.54,39.12]
[1761496282502,4.64906519,198.77,198.55,2.83]
[1761496283106,12.42229738,198.77,198.55,2.83]
[1761496283306,7.77323219,198.76,198.55,2.83]
[1761496283510,3.59050736,198.75,198.55,2.83]
[1761496283708,4.18272483,198.76,198.55,2.83]
[1761496284013,4.5288,198.73,198.65,2.83]
[1761496284314,3.59050736,198.72,198.65,2.83]
[1761496286816,4.5281,198.76,198.61,2.83]
[1761496287012,3.59403232,198.75,198.61,2.83]
[1761496288008,3.59403232,198.75,198.68,2.83]
[1761496289019,3.59403232,198.75,198.7,2.83]
[1761496289220,3.59403232,198.77,198.7,2.83]
[1761496291021,3.59403232,198.77,198.72,2.83]
[1761496291217,3.59403232,198.79,198.72,2.83]
[1761496291631,4.18957318,198.8,198.72,2.83]
[1761496291819,4.64906519,198.81,198.72,2.83]
[1761496292025,4.5274,198.79,198.72,2.83]
[1761496292329,3.59403232,198.78,198.72,2.83]
[1761496293436,7.78195735,198.78,198.69,2.83]
[1761496293627,3.59403232,198.77,198.69,2.83]
[1761496293827,4.1879569,198.79,198.69,2.83]
[1761496294032,12.43105441,198.8,198.69,2.83]
[1761496294226,7.78198922,198.79,198.69,2.83]
[1761496294426,3.59403232,198.78,198.69,2.83]
[1761496294732,4.1879569,198.79,198.69,2.83]
[1761496295033,4.528,198.76,198.69,2.83]
[1761496295234,3.59403232,198.75,198.69,2.83]
[1761496296331,3.59371041,198.75,198.69,2.83]
[1761496297735,4.5275,198.78,198.7,2.83]
[1761496297935,3.59367034,198.77,198.7,2.83]
[1761496298637,4.6506936,198.83,198.72,2.74]
[1761496299032,3.59292361,198.82,198.72,2.74]
[1761496299225,4.5266,198.82,198.73,2.74]
[1761496299435,3.59292361,198.81,198.73,2.74]
[1761496299727,3.59292361,198.81,198.74,2.74]
[1761496301136,4.6506936,198.86,198.76,2.74]
[1761496301340,3.59099807,198.85,198.76,2.74]
[1761496301532,12.43075189,198.86,198.76,2.74]
[1761496301835,7.78005829,198.85,198.76,2.74]
[1761496302034,3.59099807,198.84,198.76,2.74]
[1761496302634,4.18906022,198.85,198.76,2.74]
[1761496302833,4.5262,198.84,198.76,2.74]
[1761496303034,3.59099807,198.83,198.76,2.74]
[1761496303236,4.18761019,198.86,198.76,2.74]
[1761496303433,4.6506936,198.87,198.76,2.74]
[1761496303633,4.5259,198.85,198.78,2.74]
[1761496303833,3.59099807,198.84,198.78,2.74]
[1761496304233,8.11729807,198.84,198.78,2.74]
[1761496304439,3.59099807,198.83,198.78,2.74]
[1761496308136,3.59099807,198.85,198.78,2.74]
[1761496310142,3.59099807,198.85,198.78,4.5273]
[1761496310344,3.59099807,198.85,198.79,2.74]
[1761496315237,4.5253,198.88,198.8,2.74]
[1761496315634,4.6506936,198.94,198.83,2.74]
[1761496316140,3.58138363,198.93,198.83,2.74]
[1761496316339,7.75925634,198.94,198.83,2.74]
[1761496316744,3.58138363,198.94,198.83,2.74]
[1761496316947,4.5249,198.9,198.83,2.74]
[1761496317848,4.5251,198.89,198.83,2.74]
[1761496318036,4.1760131,198.94,198.83,2.74]
[1761496318242,4.5258,198.86,198.79,2.74]
[1761496319042,4.5258,198.86,198.7,86.20307968]
[1761496319043,4.1760131,198.92,198.71,2.74]
[1761496319248,4.6506936,198.86,198.71,2.74]
[1761496319949,4.5275,198.79,198.71,2.74]
[1761496320345,4.1760131,198.84,198.71,2.74]
[1761496320650,4.6506936,198.85,198.71,2.74]
[1761496321150,4.6506936,198.84,198.71,2.74]
[1761496321340,12.40691671,198.84,198.71,2.74]
[1761496321544,7.75622311,198.83,198.71,2.74]
[1761496321740,3.58021001,198.82,198.71,2.74]
[1761496322044,4.5279,198.77,198.71,2.74]
[1761496322445,4.1760131,198.83,198.71,2.74]
[1761496322651,4.5268,198.81,198.71,2.74]
[1761496323150,4.5277,198.78,198.7,6.28]
[1761496323349,4.5277,198.78,198.71,2.84]
[1761496324045,4.5279,198.77,198.71,2.84]
[1761496324247,4.18725569,198.82,198.71,2.84]
[1761496324451,4.6506936,198.84,198.71,2.84]
[1761496324452,4.18725569,198.83,198.71,2.84]
[1761496324750,8.83794929,198.84,198.71,2.84]
[1761496324953,8.23814264,198.83,198.71,2.84]
[1761496325250,4.18725569,198.82,198.71,2.84]
[1761496325642,12.42539833,198.83,198.71,2.84]
[1761496325839,7.77470473,198.82,198.71,2.84]
[1761496326045,4.5273,198.79,198.71,2.84]
[1761496326245,3.58744904,198.78,198.71,2.84]
[1761496326645,8.11514904,198.78,198.71,2.84]
[1761496326843,4.5277,198.78,198.71,2.84]
[1761496327244,3.59116729,198.77,198.71,2.84]
[1761496330061,4.5271,198.8,198.71,2.84]
[1761496330247,3.59334532,198.79,198.71,2.84]
[1761496330651,3.59334532,198.79,198.71,4.5289]
[1761496330953,3.59334532,198.79,198.72,2.58]
[1761496331158,7.77704441,198.82,198.72,2.58]
[1761496331358,3.59334532,198.81,198.74,2.58]
[1761496331557,7.77705358,198.83,198.74,2.58]
[1761496332157,7.77705358,198.83,198.75,2.58]
[1761496332358,3.59334532,198.82,198.75,2.58]
[1761496332764,4.18301303,198.84,198.75,2.58]
[1761496332958,3.59334532,198.84,198.75,2.58]
[1761496333464,7.77635835,198.84,198.75,2.58]
[1761496333667,12.30265835,198.84,198.76,2.58]
[1761496333859,7.77635835,198.83,198.76,2.58]
[1761496334461,3.59334532,198.83,198.76,2.58]
[1761496334861,3.59334532,198.83,198.77,2.58]
[1761496336063,3.59334532,198.83,198.79,2.58]
[1761496336268,3.59334532,198.85,198.79,2.58]
[1761496336858,3.59334532,198.85,198.8,2.58]
[1761496337157,3.59334532,198.87,198.8,2.58]
[1761496337565,3.59334532,198.87,198.81,2.58]
[1761496338268,3.59334532,198.87,198.82,2.58]
[1761496338560,7.77452926,198.89,198.82,2.58]
[1761496338766,3.59334532,198.88,198.82,2.58]
[1761496339268,4.18118394,198.89,198.82,2.58]
[1761496339871,8.24403892,198.89,198.78,7.1073]
[1761496340073,4.18118394,198.88,198.78,7.1073]
[1761496340265,7.77452926,198.88,198.78,7.1073]
[1761496340466,4.5258,198.86,198.78,7.1073]
[1761496340771,3.59334532,198.85,198.78,7.1073]
[1761496342560,3.59334532,198.85,198.79,7.1071]
[1761496342765,3.59334532,198.85,198.8,2.58]
[1761496342964,7.77381417,198.87,198.8,2.58]
[1761496343879,3.59334532,198.87,198.8,2.58]
[1761496344263,7.77397624,198.87,198.8,2.58]
[1761496345167,3.59334532,198.87,198.8,2.58]
[1761496345571,3.59334532,198.87,198.8,7.1068]
[1761496345869,3.59334532,198.87,198.81,2.58]
[1761496348175,3.59334532,198.87,198.81,4.5266]
[1761496348375,3.59334532,198.87,198.82,2.58]
[1761496348770,3.59334532,198.87,198.83,2.58]
[1761496348978,7.7720453,198.89,198.83,2.58]
[1761496351584,3.59334532,198.89,198.83,2.58]
[1761496352273,3.59334532,198.89,198.85,2.58]
[1761496353277,3.59334532,198.91,198.85,2.58]
[1761496356582,3.59334532,198.91,198.86,2.58]
[1761496356878,7.76685031,198.93,198.86,2.58]
[1761496357977,7.76685031,198.93,198.86,7.1055]
[1761496358181,12.29105031,198.93,198.86,2.58]
[1761496358368,3.59334532,198.92,198.86,2.58]
[1761496360583,4.6506936,198.91,198.85,3.44]
[1761496360774,3.59334532,198.9,198.85,3.44]
[1761496360968,12.41553539,198.92,198.85,3.44]
[1761496361175,7.76484179,198.91,198.85,3.44]
[1761496361376,3.59334532,198.9,198.85,3.44]
[1761496361579,4.17149647,198.91,198.85,3.44]
[1761496361773,4.6506936,198.92,198.85,3.44]
[1761496361969,4.525,198.89,198.85,3.44]
[1761496362173,3.59334532,198.88,198.85,3.44]
[1761496368682,3.59334532,198.88,198.86,2.8]
[1761496368879,7.76795341,198.9,198.86,2.8]
[1761496370589,3.59334532,198.89,198.86,2.8]
[1761496370788,7.77030075,198.92,198.86,2.8]
[1761496373291,3.59334532,198.91,198.86,2.8]
[1761496374296,3.59334532,198.9,198.86,2.8]
[1761496376393,3.59334532,198.89,198.86,2.8]
[1761496376592,3.59334532,198.9,198.86,2.8]
[1761496376792,3.59334532,198.89,198.86,2.8]
[1761496376994,3.59334532,198.9,198.86,2.8]
[1761496377188,3.59334532,198.89,198.86,2.8]
[1761496377386,3.59334532,198.9,198.86,2.8]
[1761496377585,3.59334532,198.89,198.86,2.8]
[1761496377891,3.59334532,198.9,198.86,2.8]
[1761496378090,3.59334532,198.91,198.86,2.8]
[1761496378394,3.59334532,198.93,198.86,2.8]
[1761496378594,3.59334532,198.92,198.86,2.8]
[1761496378795,3.59334532,198.93,198.86,2.8]
[1761496378996,3.59334532,198.92,198.88,2.8]
[1761496379191,7.78191881,198.93,198.88,2.8]
[1761496379392,3.59334532,198.92,198.88,2.8]
[1761496379692,3.59334532,198.93,198.88,2.8]
[1761496380496,3.59334532,198.93,198.89,2.8]
[1761496380698,3.59334532,198.95,198.89,2.8]
[1761496380897,3.59334532,198.94,198.92,2.8]
[1761496381197,3.59334532,198.95,198.92,2.8]
[1761496381395,3.59334532,198.96,198.92,2.8]
[1761496381595,4.6506936,198.93,198.85,3.44]
[1761496381786,3.59334532,198.92,198.85,6.24]
[1761496381991,4.6506936,198.93,198.86,2.8]
[1761496381992,3.59334532,198.91,198.86,2.8]
[1761496382191,3.59334532,198.92,198.86,2.8]
[1761496382796,7.77999748,198.93,198.86,2.8]
[1761496382997,12.30439748,198.92,198.86,2.8]
[1761496383202,3.59334532,198.91,198.86,2.8]
[1761496384195,7.77834762,198.91,198.86,2.8]
[1761496384394,3.59334532,198.91,198.86,2.8]
[1761496384598,7.77834762,198.91,198.86,2.8]
[1761496384799,8.11804532,198.91,198.86,2.8]
[1761496384998,3.59334532,198.9,198.86,2.8]
[1761496386206,4.525,198.89,198.85,3.44]
[1761496386408,3.58041603,198.88,198.85,3.44]
[1761496387111,3.58041603,198.88,198.85,6.13]
[1761496388702,7.75711715,198.88,198.85,6.13]
[1761496389097,7.75711715,198.88,198.85,3.44]
[1761496389498,4.5254,198.87,198.85,3.44]
[1761496389702,3.58041603,198.86,198.85,3.44]
[1761496389914,7.75711715,198.86,198.85,3.44]
[1761496392503,12.40781075,198.86,198.85,3.44]
[1761496394314,12.42443741,198.86,198.85,3.44]
[1761496395217,7.75954327,198.86,198.85,3.44]
[1761496395415,12.42443741,198.86,198.85,3.44]
[1761496395802,7.75954327,198.86,198.85,3.44]
[1761496397913,3.58284215,198.86,198.85,3.44]
[1761496399110,4.66489414,198.91,198.85,6.2]
[1761496399304,3.58086724,198.9,198.85,6.2]
[1761496399509,7.75773184,198.92,198.86,2.76]
[1761496399816,3.58086724,198.91,198.86,2.76]
[1761496400017,7.75859566,198.93,198.86,2.76]
[1761496400818,8.10536724,198.92,198.85,3.44]
[1761496401015,7.75974936,198.91,198.85,3.44]
[1761496401609,3.58086724,198.91,198.85,3.44]
[1761496401908,12.28465896,198.91,198.85,3.44]
[1761496402114,12.28465896,198.91,198.85,6.2]
[1761496402115,3.58086724,198.9,198.85,6.2]
[1761496402512,3.58086724,198.9,198.86,2.76]
[1761496403614,3.58086724,198.89,198.85,3.44]
[1761496404215,3.58086724,198.89,198.81,2.76]
[1761496404416,7.75944563,198.89,198.81,2.76]
[1761496404615,3.58086724,198.88,198.81,2.76]
[1761496404811,7.75944563,198.88,198.81,2.76]
[1761496405012,4.5256,198.87,198.81,2.76]
[1761496405211,3.58086724,198.86,198.81,2.76]
[1761496405823,3.58086724,198.86,198.82,3.44]
[1761496406624,3.58086724,198.86,198.83,2.76]
[1761496406926,3.58086724,198.88,198.83,2.76]
[1761496407121,12.4254233,198.9,198.83,2.76]
[1761496407317,7.76052916,198.89,198.83,2.76]
[1761496408126,12.28562916,198.89,198.83,2.76]
[1761496408317,3.58086724,198.88,198.83,2.76]
[1761496411327,3.58086724,198.88,198.82,3.44]
[1761496411532,3.58086724,198.87,198.82,3.44]
[1761496412025,4.5263,198.83,198.82,3.44]
[1761496412724,8.10716724,198.83,198.82,3.44]
[1761496414431,12.28518729,198.83,198.82,3.44]
[1761496415024,8.10716724,198.83,198.82,3.44]
[1761496422628,12.28053803,198.83,198.82,3.44]
[1761496425939,4.5268,198.81,198.76,2.57]
[1761496426135,3.58086724,198.8,198.76,2.57]
[1761496426633,3.57743709,198.8,198.76,2.57]
[1761496428434,3.57743709,198.8,198.78,2.57]
[1761496433844,3.57743709,198.82,198.78,2.57]
[1761496441044,8.10413709,198.82,198.78,2.57]
[1761496441245,3.57743709,198.81,198.78,2.57]
[1761496443745,3.57743709,198.81,198.77,3.44]
[1761496443940,7.75310578,198.83,198.77,3.44]
[1761496444344,12.41227819,198.83,198.77,3.44]
[1761496444544,7.75310578,198.82,198.77,6.04]
[1761496444745,3.57743709,198.81,198.77,6.04]
[1761496444946,7.75337486,198.83,198.77,6.04]
[1761496445156,4.65917241,198.81,198.77,3.44]
[1761496445345,8.2366095,198.8,198.77,3.44]
[1761496445546,4.65917241,198.78,198.77,3.44]
[1761496445850,12.41254727,198.78,198.77,3.44]
[1761496446247,8.83511018,198.78,198.77,3.44]
[1761496446750,12.41254727,198.78,198.77,3.44]